bitfinex/quotes_SOLUSD_20250706
["timestamp","ask_amount","ask_price","bid_price","bid_amount"]
[1751784939892,7.59809662,148.25,148.24,6.74581759]
[1751784947805,7.59809662,148.25,148.24,10.55591031]
[1751784948999,7.59809662,148.25,148.24,6.74581759]
[1751784957705,7.59809662,148.25,148.24,10.55591031]
[1751784959927,7.59809662,148.25,148.24,98.75591031]
[1751784959928,0.03,148.25,148.24,98.75591031]
[1751784971516,0.03,148.25,148.24,94.94581759]
[1751784971721,0.03,148.25,148.24,98.75591031]
[1751784975399,0.03,148.25,148.24,94.94581759]
[1751784975600,0.03,148.25,148.24,98.75591031]
[1751784982433,0.03,148.25,148.24,10.55591031]
[1751784991037,0.03,148.25,148.23,6.74627268]
[1751784991214,7.58378517,148.24,148.23,6.74627268]
[1751784993523,7.58378517,148.24,148.22,0.06]
[1751784993835,7.58378517,148.23,148.22,0.06]
[1751785023954,11.39387789,148.23,148.22,0.06]
[1751785026556,18.14015057,148.23,148.22,0.06]
[1751785026764,36.81979943,148.23,148.22,0.06]
[1751785030262,46.29548347,148.23,148.22,0.06]
[1751785030459,36.81979943,148.23,148.22,0.06]
[1751785031050,46.29548347,148.23,148.22,0.06]
[1751785033343,47.83598347,148.23,148.22,0.06]
[1751785033542,81.87598347,148.23,148.22,0.06]
[1751785037269,18.62996921,148.23,148.22,0.06]
[1751785037452,7.61378517,148.23,148.22,0.06]
[1751785044051,11.42387789,148.23,148.22,0.06]
[1751785063794,7.61378517,148.23,148.22,0.06]
[1751785063977,7.61378517,148.23,148.22,3.87009272]
[1751785065192,7.61378517,148.23,148.22,92.07009272]
[1751785065492,0.03,148.23,148.22,92.07009272]
[1751785065882,0.03,148.23,148.22,98.81682055]
[1751785077105,0.03,148.23,148.22,98.81682055]
[1751785084727,0.03,148.24,148.22,124.81682055]
[1751785085123,0.03,148.24,148.23,3.81009272]
[1751785085429,0.03,148.24,148.23,10.75009272]
[1751785085829,0.03,148.24,148.23,98.95009272]
[1751785086732,0.03,148.24,148.23,105.6963654]
[1751785097036,1e-08,148.24,148.23,139.58638514]
[1751785097748,7.55701009,148.29,148.23,156.45206685]
[1751785097934,6.4025,148.3,148.28,3.81009272]
[1751785098136,7.55668602,148.29,148.28,3.81009272]
[1751785098330,7.55668602,148.29,148.28,10.55409056]
[1751785099460,7.55668602,148.29,148.26,10.55500031]
[1751785099629,7.55713187,148.28,148.26,10.55500031]
[1751785099827,6.4025,148.3,148.26,10.55500031]
[1751785100063,7.55768029,148.29,148.26,10.55500031]
[1751785100262,7.55768029,148.28,148.26,10.55500031]
[1751785100572,6.4025,148.3,148.26,10.55500031]
[1751785100779,7.55830304,148.29,148.26,10.55500031]
[1751785100991,7.55830304,148.28,148.26,10.55500031]
[1751785101165,6.4025,148.3,148.26,10.55500031]
[1751785101355,7.55820889,148.29,148.26,10.55500031]
[1751785101555,7.55820889,148.28,148.26,10.55500031]
[1751785101754,6.4025,148.3,148.26,10.55500031]
[1751785101961,7.55942782,148.29,148.27,3.81009272]
[1751785102162,7.55942782,148.28,148.27,3.81009272]
[1751785103673,7.55942782,148.28,148.27,10.5545454]
[1751785106862,7.55942782,148.28,148.26,3.81009272]
[1751785107056,6.4025,148.3,148.26,3.81009272]
[1751785107258,7.56811637,148.29,148.26,3.81009272]
[1751785107477,7.56811637,148.28,148.26,3.81009272]
[1751785107780,6.4025,148.3,148.26,3.81009272]
[1751785107982,7.57059472,148.29,148.27,6.74445268]
[1751785108183,7.57059472,148.28,148.27,6.74445268]
[1751785112990,7.60059472,148.28,148.27,6.74445268]
[1751785119891,7.60685008,148.28,148.27,6.74445268]
[1751785120590,7.60685008,148.28,148.26,10.5549055]
[1751785120809,7.57685008,148.27,148.25,6.74536256]
[1751785121099,7.57685008,148.26,148.25,6.74536256]
[1751785121308,7.57685008,148.26,148.24,6.74565864]
[1751785121472,7.57685008,148.25,148.24,6.74565864]
[1751785122399,7.57685008,148.25,148.23,13.68610273]
[1751785122604,7.57685008,148.24,148.23,13.68610273]
[1751785124182,7.57685008,148.24,148.23,17.49619545]
[1751785125395,1.6115,148.27,148.23,17.49619545]
[1751785125586,7.5776871,148.26,148.23,17.49619545]
[1751785125776,7.5776871,148.25,148.23,17.49619545]
[1751785125977,7.5776871,148.24,148.23,17.49619545]
[1751785131227,7.57532466,148.24,148.23,6.94]
[1751785132427,7.57532466,148.24,148.22,0.06]
[1751785132616,7.57532466,148.23,148.22,0.06]
[1751785143328,7.57532466,148.23,148.22,3.87009272]
[1751785144847,7.56241049,148.24,148.22,3.87009272]
[1751785145030,0.03,148.25,148.23,3.81009272]
[1751785145225,7.56240599,148.24,148.23,3.81009272]
[1751785145430,7.56240599,148.24,148.23,10.5563654]
[1751785147029,7.56240599,148.24,148.22,3.87009272]
[1751785147236,0.03,148.25,148.22,3.87009272]
[1751785147437,7.56217314,148.24,148.22,3.87009272]
[1751785147640,0.03,148.25,148.22,0.06]
[1751785147845,7.56217314,148.24,148.22,0.06]
[1751785148154,0.03,148.25,148.22,0.06]
[1751785148333,7.5620911,148.24,148.22,0.06]
[1751785148527,0.03,148.25,148.22,0.06]
[1751785148827,7.5620938,148.24,148.22,0.06]
[1751785149036,3.84009272,148.25,148.22,0.06]
[1751785149241,7.5620911,148.24,148.22,0.06]
[1751785149441,3.84009272,148.25,148.22,0.06]
[1751785149731,7.56224362,148.24,148.22,0.06]
[1751785149930,3.84009272,148.25,148.22,0.06]
[1751785150126,7.56224362,148.24,148.22,0.06]
[1751785150342,3.84009272,148.25,148.22,0.06]
[1751785150535,7.5624844,148.24,148.22,0.06]
[1751785150737,3.84009272,148.25,148.22,0.06]
[1751785150941,7.5624871,148.24,148.22,0.06]
[1751785151139,3.84009272,148.25,148.22,0.06]
[1751785151344,7.56281269,148.24,148.22,0.06]
[1751785151542,3.84009272,148.25,148.22,0.06]
[1751785151729,7.56281269,148.24,148.22,0.06]
[1751785151930,3.84009272,148.25,148.22,0.06]
[1751785152225,7.56281269,148.24,148.22,0.06]
[1751785152428,3.84009272,148.25,148.22,0.06]
[1751785152634,7.56323843,148.24,148.22,0.06]
[1751785152836,3.84009272,148.25,148.22,0.06]
[1751785153063,7.56323843,148.24,148.22,0.06]
[1751785153256,3.84009272,148.25,148.22,0.06]
[1751785153448,7.56376156,148.24,148.22,0.06]
[1751785153649,3.84009272,148.25,148.22,0.06]
[1751785153847,7.56376156,148.24,148.22,0.06]
[1751785154036,3.84009272,148.25,148.22,0.06]
[1751785154231,7.56376156,148.24,148.22,0.06]
[1751785154451,3.84009272,148.25,148.22,0.06]
[1751785154748,7.56438463,148.24,148.22,0.06]
[1751785154952,3.84009272,148.25,148.22,0.06]
[1751785155137,7.56438463,148.24,148.22,0.06]
[1751785155452,3.84009272,148.25,148.22,0.06]
[1751785155654,7.5651182,148.24,148.22,0.06]
[1751785155842,3.84009272,148.25,148.22,0.06]
[1751785156044,7.5651155,148.24,148.22,0.06]
[1751785156247,7.5651155,148.23,148.22,0.06]
[1751785161863,7.5651155,148.23,148.22,10.61682055]
[1751785176687,7.5651155,148.23,148.22,0.06]
[1751785176881,7.5651155,148.23,148.22,3.87009272]
[1751785177907,7.5651155,148.23,148.22,10.61682055]
[1751785180282,7.5651155,148.23,148.22,6.80672783]
[1751785182501,7.5651155,148.23,148.22,3.87009272]
[1751785192028,7.5651155,148.23,148.22,10.61682055]
[1751785202318,0.03,148.25,148.22,10.61682055]
[1751785202629,7.58692749,148.24,148.22,23.67354742]
[1751785202937,0.03,148.25,148.22,23.67354742]
[1751785203123,7.58692568,148.24,148.22,23.67354742]
[1751785203436,0.03,148.25,148.22,23.67354742]
[1751785203620,7.58417669,148.24,148.22,23.67354742]
[1751785203814,0.03,148.25,148.23,3.81009272]
[1751785204017,0.03,148.25,148.24,3.81009272]
[1751785204205,7.61417399,148.25,148.24,10.55591031]
[1751785206637,7.61417399,148.25,148.24,98.75591031]
[1751785210038,0.03,148.25,148.24,98.75591031]
[1751785214745,0.03,148.25,148.24,94.94581759]
[1751785215039,0.03,148.25,148.24,98.75591031]
[1751785221137,0.03,148.25,148.24,94.94581759]
[1751785221356,0.03,148.25,148.24,98.75591031]
[1751785221521,0.03,148.25,148.24,98.81591031]
[1751785228440,26.0,148.32,148.24,98.81591031]
[1751785228441,3.81009272,148.33,148.25,41.75445974]
[1751785228651,7.5611675,148.32,148.28,3.81009272]
[1751785228850,7.5611675,148.31,148.28,3.81009272]
[1751785229063,3.81009272,148.34,148.28,3.81009272]
[1751785229242,7.5612545,148.33,148.29,6.74354305]
[1751785229439,7.5612545,148.32,148.29,10.55363577]
[1751785229638,7.5612545,148.31,148.29,10.55363577]
[1751785229840,3.81009272,148.34,148.29,10.55363577]
[1751785230056,7.55917657,148.33,148.29,10.55363577]
[1751785230362,7.55917657,148.32,148.28,6.74392747]
[1751785230670,7.55917657,148.31,148.28,10.55402019]
[1751785230887,55.65810469,148.35,148.28,10.55402019]
[1751785231038,3.81009272,148.33,148.28,10.55402019]
[1751785231237,7.55791838,148.32,148.28,10.55402019]
[1751785231437,7.55791838,148.31,148.28,10.55402019]
[1751785231665,3.81009272,148.33,148.28,10.55402019]
[1751785231882,7.55698731,148.32,148.28,10.55402019]
[1751785232166,7.55698731,148.31,148.28,10.55402019]
[1751785232364,3.81009272,148.33,148.28,10.55402019]
[1751785232540,7.55627443,148.32,148.28,10.55402019]
[1751785232834,7.55627443,148.31,148.28,10.55402019]
[1751785233039,3.81009272,148.33,148.28,10.55402019]
[1751785233242,7.55627443,148.32,148.28,10.55402019]
[1751785233440,7.55627443,148.31,148.28,10.55402019]
[1751785233660,3.81009272,148.33,148.28,6.74392747]
[1751785233866,7.55575542,148.32,148.27,3.81009272]
[1751785234166,7.55575542,148.31,148.27,3.81009272]
[1751785234369,3.81009272,148.33,148.27,3.81009272]
[1751785234668,7.55543988,148.32,148.27,3.81009272]
[1751785234851,7.55543988,148.31,148.27,3.81009272]
[1751785235050,3.81009272,148.33,148.27,3.81009272]
[1751785235254,7.55543988,148.32,148.28,10.55395637]
[1751785235462,7.55543988,148.31,148.28,10.55395637]
[1751785235758,3.81009272,148.33,148.28,10.55395637]
[1751785235962,7.55529436,148.32,148.28,10.55395637]
[1751785236168,7.55529436,148.31,148.28,10.55395637]
[1751785236466,18.64964886,148.33,148.28,10.55395637]
[1751785236668,7.55534526,148.32,148.28,10.55395637]
[1751785236853,7.55534526,148.31,148.28,10.55395637]
[1751785237054,18.64964886,148.33,148.29,3.81009272]
[1751785237248,7.55533719,148.32,148.29,3.81009272]
[1751785237567,7.55533719,148.31,148.29,3.81009272]
[1751785237768,18.64964886,148.33,148.29,3.81009272]
[1751785237967,7.55555842,148.32,148.29,3.81009272]
[1751785238153,7.55555842,148.31,148.29,3.81009272]
[1751785238357,18.64964886,148.33,148.29,3.81009272]
[1751785238565,7.55597206,148.32,148.29,3.81009272]
[1751785238765,7.55597206,148.31,148.29,3.81009272]
[1751785238970,18.64964886,148.33,148.29,3.81009272]
[1751785239173,7.55597206,148.32,148.29,3.81009272]
[1751785239413,7.55597206,148.31,148.29,3.81009272]
[1751785239582,18.64964886,148.33,148.28,6.7436881]
[1751785239743,18.64964886,148.33,148.24,163.22945884]
[1751785239744,33.9146,148.29,148.24,0.06]
[1751785239943,3.81009272,148.27,148.24,0.06]
[1751785240279,22.45974158,148.26,148.24,0.06]
[1751785240446,18.64964886,148.26,148.24,0.06]
[1751785241464,44.73418407,148.28,148.24,0.06]
[1751785241649,26.21143486,148.27,148.24,0.06]
[1751785241849,18.64964886,148.27,148.24,0.06]
[1751785242369,22.45974158,148.27,148.24,0.06]
[1751785242568,29.20421004,148.27,148.24,0.06]
[1751785243663,7.56678158,148.26,148.24,0.06]
[1751785243862,7.56678158,148.25,148.24,0.06]
[1751785255902,7.56678158,148.25,148.24,3.87009272]
[1751785256063,7.56678158,148.25,148.24,0.06]
[1751785256261,7.56678158,148.27,148.24,3.87009272]
[1751785256463,7.56678158,148.26,148.25,3.81009272]
[1751785257283,7.56678158,148.26,148.25,10.55545528]
[1751785257581,7.55056849,148.26,148.25,10.55545528]
[1751785258284,7.55056849,148.26,148.24,3.87009272]
[1751785258474,3.81009272,148.27,148.24,0.06]
[1751785258674,7.550405,148.26,148.24,0.06]
[1751785258874,7.550405,148.25,148.24,0.06]
[1751785266782,11.36049772,148.25,148.24,0.06]
[1751785268492,7.550405,148.25,148.24,0.06]
[1751785272390,7.54204966,148.25,148.24,0.06]
[1751785273805,7.54204966,148.26,148.24,0.06]
[1751785274110,7.54204966,148.25,148.24,0.06]
[1751785274309,7.54204966,148.26,148.24,0.06]
[1751785274612,7.54204966,148.25,148.24,0.06]
[1751785274788,7.54204966,148.26,148.24,0.06]
[1751785275100,7.54204966,148.25,148.24,0.06]
[1751785276106,7.54204966,148.25,148.24,3.87009272]
[1751785276407,7.54204966,148.27,148.24,3.87009272]
[1751785276602,7.54204966,148.26,148.24,0.06]
[1751785276802,7.54204966,148.25,148.24,0.06]
[1751785276984,7.54204966,148.27,148.24,0.06]
[1751785277307,7.54204966,148.26,148.24,0.06]
[1751785277499,7.54204966,148.25,148.24,0.06]
[1751785278602,7.54204966,148.25,148.24,3.87009272]
[1751785280199,7.54204966,148.25,148.24,10.61591031]
[1751785293737,7.54204966,148.25,148.24,98.81591031]
[1751785294118,0.03,148.28,148.24,10.61591031]
[1751785294318,0.03,148.28,148.27,3.81009272]
[1751785294538,7.60305816,148.28,148.27,3.81009272]
[1751785297238,7.60305816,148.28,148.27,10.5545454]
[1751785303957,7.60305816,148.28,148.25,6.74536256]
[1751785304134,7.57305816,148.27,148.26,3.81009272]
[1751785304845,7.57305816,148.27,148.26,92.01009272]
[1751785305232,7.57305816,148.27,148.26,98.75500031]
[1751785308860,7.57305816,148.27,148.26,88.2]
[1751785310675,7.57305816,148.27,148.24,6.80550822]
[1751785310859,7.57305816,148.26,148.24,6.80550822]
[1751785311160,7.57305816,148.25,148.24,6.80550822]
[1751785316172,7.57305816,148.25,148.24,10.61560094]
[1751785326580,7.57305816,148.25,148.24,6.80550822]
[1751785326884,7.57305816,148.25,148.24,10.61560094]
[1751785338299,7.57305816,148.25,148.24,0.06]
[1751785338500,7.57305816,148.25,148.24,3.87009272]
[1751785340006,7.57305816,148.25,148.24,10.61591031]
[1751785341298,0.03,148.28,148.24,10.61591031]
[1751785341490,0.03,148.28,148.27,3.81009272]
[1751785341685,7.59914186,148.28,148.27,3.81009272]
[1751785342087,7.59914186,148.28,148.27,10.5545454]
[1751785345604,7.60253528,148.28,148.27,98.7545454]
[1751785346315,9.4956691,148.32,148.27,134.26532597]
[1751785346487,0.03,148.32,148.31,3.81009272]
[1751785346808,7.60235847,148.32,148.31,3.81009272]
[1751785348390,7.60235847,148.32,148.31,10.55272639]
[1751785348593,7.60235847,148.32,148.31,6.74263367]
[1751785348813,7.60235847,148.32,148.31,10.55272639]
[1751785353316,0.03,148.32,148.31,10.55272639]
[1751785353519,7.57937511,148.32,148.31,6.74263367]
[1751785353822,7.57937511,148.32,148.31,10.55272639]
[1751785355603,0.03,148.32,148.31,10.55272639]
[1751785356316,0.03,148.32,148.31,98.75272639]
[1751785380568,0.03,148.32,148.31,94.94263367]
[1751785380869,0.03,148.32,148.31,98.75272639]
[1751785382062,7.56789764,148.32,148.31,88.2]
[1751785387667,7.56789764,148.32,148.3,94.94278549]
[1751785387867,7.53789764,148.31,148.3,94.94278549]
[1751785388778,26.19985334,148.31,148.24,6.80572518]
[1751785388977,3.81009272,148.27,148.24,6.80572518]
[1751785389280,7.53789764,148.26,148.24,10.6158179]
[1751785389453,13.27576182,148.29,148.24,10.6158179]
[1751785389680,7.55194724,148.28,148.24,10.6158179]
[1751785389868,13.27576182,148.29,148.24,10.6158179]
[1751785389869,7.55194724,148.27,148.24,10.6158179]
[1751785390071,7.55194724,148.26,148.24,10.6158179]
[1751785390288,7.55194724,148.25,148.24,10.6158179]
[1751785391087,13.27576182,148.29,148.24,10.6158179]
[1751785391292,7.54736999,148.28,148.24,10.6158179]
[1751785391587,7.54736999,148.27,148.24,10.6158179]
[1751785391785,23.53342356,148.31,148.26,5.95865446]
[1751785391987,7.54802139,148.3,148.26,5.95865446]
[1751785392166,7.54802139,148.29,148.26,5.95865446]
[1751785392372,7.54802139,148.28,148.26,5.95865446]
[1751785392573,7.54802139,148.27,148.26,5.95865446]
[1751785392981,7.54802139,148.27,148.26,12.70356205]
[1751785393710,7.54802139,148.27,148.26,6.74490759]
[1751785393914,7.54802139,148.27,148.26,12.70356205]
[1751785394809,7.54802139,148.27,148.26,5.95865446]
[1751785396020,7.54802139,148.27,148.26,12.70356205]
[1751785396810,14.06775446,148.31,148.26,12.70356205]
[1751785397028,7.54035427,148.3,148.27,5.95865446]
[1751785397214,7.54035427,148.29,148.27,5.95865446]
[1751785397412,7.54035427,148.28,148.26,6.74490759]
[1751785397706,8.1091,148.31,148.27,5.95865446]
[1751785397896,7.53950699,148.3,148.28,5.95865446]
[1751785398212,7.53950699,148.29,148.28,12.7026523]
[1751785402113,8.1091,148.31,148.28,12.7026523]
[1751785402329,7.53937573,148.3,148.29,5.95865446]
[1751785402617,0.03,148.32,148.29,5.95865446]
[1751785403615,0.03,148.32,148.3,6.74308833]
[1751785404119,0.03,148.32,148.31,5.95865446]
[1751785404321,7.57099771,148.32,148.31,5.95865446]
[1751785405918,7.57099771,148.32,148.3,5.95865446]
[1751785406218,0.03,148.32,148.3,5.95865446]
[1751785408023,0.03,148.32,148.31,6.74263367]
[1751785408205,7.57355985,148.32,148.31,6.74263367]
[1751785410525,7.57355985,148.32,148.31,12.70128813]
[1751785415912,7.57355985,148.32,148.31,3.81065152]
[1751785416113,7.57355985,148.32,148.31,92.01065152]
[1751785417132,0.03,148.32,148.31,92.01065152]
[1751785417723,0.03,148.32,148.31,98.75328519]
[1751785426444,1e-08,148.32,148.31,124.75328519]
[1751785427734,1e-08,148.32,148.31,143.40293405]
[1751785432527,1e-08,148.32,148.31,158.64554013]
[1751785432935,1e-08,148.32,148.31,143.40293405]
[1751785433342,1e-08,148.32,148.31,132.64554013]
[1751785433536,1e-08,148.32,148.31,117.40293405]
[1751785439421,19.17596969,148.32,148.28,0.06]
[1751785439623,11.35346968,148.31,148.28,0.06]
[1751785439932,17.24996494,148.32,148.28,0.06]
[1751785439933,7.54281816,148.3,148.28,3.87065152]
[1751785440133,7.54281816,148.29,148.28,0.06]
[1751785440551,7.54281816,148.29,148.28,6.80382308]
[1751785441247,7.54281816,148.29,148.28,10.6144746]
[1751785441748,7.54281816,148.29,148.28,6.80382308]
[1751785446248,7.82250001,148.32,148.28,12.7608454]
[1751785446456,7.55734644,148.31,148.29,5.95702232]
[1751785446652,7.55734644,148.3,148.28,12.7608454]
[1751785446831,7.55734644,148.29,148.28,12.7608454]
[1751785447861,7.82250001,148.32,148.28,29.62084]
[1751785447862,1.56890001,148.32,148.28,29.62084]
[1751785448035,1e-08,148.32,148.31,5.95702232]
[1751785448243,7.55984239,148.32,148.31,5.95702232]
[1751785449044,7.55984239,148.32,148.31,12.69965599]
[1751785453149,7.55984239,148.32,148.31,100.89965599]
[1751785456260,1e-08,148.32,148.31,100.89965599]
[1751785456441,7.5618117,148.32,148.31,100.89965599]
[1751785462174,1e-08,148.32,148.31,126.89965599]
[1751785462546,1e-08,148.32,148.31,145.54930485]
[1751785463885,1e-08,148.32,148.31,143.40123952]
[1751785465972,1e-08,148.32,148.31,145.54427265]
[1751785469456,1e-08,148.32,148.31,139.59228253]
[1751785469658,1e-08,148.32,148.31,145.54427265]
[1751785473152,1e-08,148.32,148.31,94.94263367]
[1751785473376,1e-08,148.32,148.31,100.89462379]
[1751785478976,1e-08,148.32,148.31,94.94263367]
[1751785479175,7.56316261,148.32,148.31,94.94263367]
[1751785483793,7.56316261,148.32,148.31,100.89462379]
[1751785485588,7.56316261,148.32,148.31,100.95462379]
[1751785487778,7.56316261,148.32,148.31,98.81326648]
[1751785492496,7.56316261,148.32,148.31,95.00263367]
[1751785495597,7.56316261,148.32,148.31,98.81326648]
[1751785496701,7.56316261,148.32,148.31,95.00263367]
[1751785499203,11.37379542,148.32,148.31,0.06]
[1751785499501,22.36906003,148.32,148.31,0.06]
[1751785500407,19.65897449,148.32,148.29,6.96]
[1751785500588,13.28258368,148.3,148.28,0.06]
[1751785500905,11.37379541,148.29,148.28,0.06]
[1751785501796,7.5631626,148.29,148.28,0.06]
[1751785507706,13.52231385,148.29,148.28,0.06]
[1751785508315,19.93381385,148.29,148.28,0.06]
[1751785508624,28.2195569,148.29,148.28,0.06]
[1751785508793,18.64964886,148.28,148.25,0.06]
[1751785508991,5.95915125,148.26,148.25,0.06]
[1751785509187,13.52231385,148.26,148.25,0.06]
[1751785509785,7.5631626,148.26,148.25,0.06]
[1751785509995,13.52231385,148.26,148.25,0.06]
[1751785511520,7.5631626,148.26,148.25,0.06]
[1751785513086,7.5631626,148.27,148.25,0.06]
[1751785513285,7.5631626,148.26,148.25,0.06]
[1751785513588,7.5631626,148.27,148.25,0.06]
[1751785513788,7.5631626,148.26,148.25,0.06]
[1751785513988,7.5631626,148.27,148.25,0.06]
[1751785514204,7.5631626,148.26,148.25,0.06]
[1751785514388,7.5631626,148.27,148.25,0.06]
[1751785514591,13.91285125,148.29,148.25,0.06]
[1751785514791,7.54436612,148.28,148.25,0.06]
[1751785515010,13.91285125,148.29,148.25,0.06]
[1751785515212,7.54396461,148.28,148.25,0.06]
[1751785515397,13.91285125,148.29,148.25,0.06]
[1751785515597,7.54425369,148.28,148.25,0.06]
[1751785515902,13.91285125,148.29,148.25,0.06]
[1751785516114,7.54425369,148.28,148.25,0.06]
[1751785516298,13.91285125,148.29,148.25,0.06]
[1751785516498,7.54416873,148.28,148.25,0.06]
[1751785516698,13.91285125,148.29,148.25,0.06]
[1751785516893,7.54416873,148.28,148.25,6.01915125]
[1751785517137,13.91285125,148.29,148.25,6.01915125]
[1751785517418,7.54376507,148.28,148.25,6.01915125]
[1751785517620,13.91285125,148.29,148.25,6.01915125]
[1751785517916,7.54426537,148.28,148.25,6.01915125]
[1751785518220,13.91285125,148.29,148.25,12.76427308]
[1751785518516,7.54394477,148.28,148.25,12.76427308]
[1751785518817,13.91285125,148.29,148.25,12.76427308]
[1751785519017,7.54389732,148.28,148.25,12.76427308]
[1751785519226,13.91285125,148.29,148.25,12.76427308]
[1751785519517,7.54360656,148.28,148.25,12.76427308]
[1751785519720,13.91285125,148.29,148.25,12.76427308]
[1751785520019,7.54360656,148.28,148.25,12.76427308]
[1751785520221,13.91285125,148.29,148.25,12.76427308]
[1751785520425,7.54343849,148.28,148.25,12.76427308]
[1751785520727,13.91285125,148.29,148.25,12.76427308]
[1751785520895,7.54343415,148.28,148.25,12.76427308]
[1751785521095,13.91285125,148.29,148.25,12.76427308]
[1751785521320,7.54332782,148.28,148.25,12.76427308]
[1751785521519,13.91285125,148.29,148.25,12.76427308]
[1751785521819,7.54337777,148.28,148.25,10.61903563]
[1751785521993,7.9537,148.29,148.25,10.61903563]
[1751785522199,7.54333368,148.28,148.25,10.61903563]
[1751785522400,1.5422,148.29,148.25,10.61903563]
[1751785522615,7.5434415,148.28,148.25,10.61903563]
[1751785522920,1.5422,148.29,148.25,10.61903563]
[1751785523122,7.5434397,148.28,148.25,10.61903563]
[1751785523420,1.5422,148.29,148.25,10.61903563]
[1751785523719,7.5438009,148.28,148.25,10.61903563]
[1751785523920,1.5422,148.29,148.25,10.61903563]
[1751785524107,7.54380352,148.28,148.25,10.61903563]
[1751785524310,1.5422,148.29,148.25,10.61903563]
[1751785524502,7.54364475,148.28,148.25,10.61903563]
[1751785526205,5.3561138,148.29,148.25,10.61903563]
[1751785526431,7.54351691,148.28,148.25,10.61903563]
[1751785526807,5.3561138,148.29,148.25,10.61903563]
[1751785527008,7.54351432,148.28,148.25,10.61903563]
[1751785527208,5.3561138,148.29,148.25,10.61903563]
[1751785527427,7.54370092,148.28,148.25,10.61903563]
[1751785527621,5.3561138,148.29,148.25,10.61903563]
[1751785527835,7.54370092,148.28,148.25,10.61903563]
[1751785528005,5.3561138,148.29,148.25,6.80512183]
[1751785528204,7.54401935,148.28,148.25,6.80512183]
[1751785528504,5.3561138,148.29,148.25,6.80512183]
[1751785528704,7.54395274,148.28,148.25,6.80512183]
[1751785528905,5.3561138,148.29,148.25,6.80512183]
[1751785529132,7.54395274,148.28,148.25,6.80512183]
[1751785529306,5.3561138,148.29,148.25,6.80512183]
[1751785529511,7.5444243,148.28,148.25,6.80512183]
[1751785529717,5.3561138,148.29,148.25,6.80512183]
[1751785529917,7.5444243,148.28,148.25,6.80512183]
[1751785530129,5.3561138,148.29,148.25,6.80512183]
[1751785530330,7.54478467,148.28,148.25,6.80512183]
[1751785530525,5.3561138,148.29,148.25,6.80512183]
[1751785530725,7.54518106,148.28,148.25,6.80512183]
[1751785530925,5.3561138,148.29,148.25,6.80512183]
[1751785531125,7.54518106,148.28,148.25,6.80512183]
[1751785531332,5.3561138,148.29,148.25,6.80512183]
[1751785531508,7.54604803,148.28,148.25,6.80512183]
[1751785531708,5.3861138,148.29,148.25,6.80512183]
[1751785531932,7.54604543,148.28,148.25,6.80512183]
[1751785532229,5.3861138,148.29,148.25,6.80512183]
[1751785532532,7.54643497,148.28,148.25,6.80512183]
[1751785532739,5.3861138,148.29,148.25,6.80512183]
[1751785532913,7.54702039,148.28,148.25,6.80512183]
[1751785533116,5.3861138,148.29,148.25,6.80512183]
[1751785533310,7.54742042,148.28,148.25,6.80512183]
[1751785533613,5.3861138,148.29,148.25,6.80512183]
[1751785533810,7.54811736,148.28,148.25,6.80512183]
[1751785534012,5.3861138,148.29,148.25,6.80512183]
[1751785534237,7.54852499,148.28,148.25,6.80512183]
[1751785534537,5.3861138,148.29,148.25,6.80512183]
[1751785534832,7.54933739,148.28,148.25,6.80512183]
[1751785535039,5.3861138,148.29,148.25,6.80512183]
[1751785535333,7.54975251,148.28,148.25,6.80512183]
[1751785535525,7.5507654,148.27,148.25,6.80512183]
[1751785535732,5.3861138,148.29,148.25,6.80512183]
[1751785535921,7.55082621,148.28,148.25,6.80512183]
[1751785536234,7.55111606,148.27,148.25,6.80512183]
[1751785536408,5.3861138,148.29,148.25,6.80512183]
[1751785536605,7.55221422,148.28,148.25,6.80512183]
[1751785536817,7.55221422,148.27,148.25,6.80512183]
[1751785537142,5.3861138,148.29,148.25,6.80512183]
[1751785537326,7.55262557,148.28,148.25,6.80512183]
[1751785537513,7.55262557,148.27,148.25,6.80512183]
[1751785537832,7.55347977,148.28,148.26,3.8139138]
[1751785538024,0.03,148.29,148.26,3.8139138]
[1751785538223,7.5539306,148.28,148.26,3.8139138]
[1751785538535,0.03,148.29,148.26,3.8139138]
[1751785538840,7.55538961,148.28,148.26,3.8139138]
[1751785539018,0.03,148.29,148.26,3.8139138]
[1751785539216,7.55582011,148.28,148.27,3.8139138]
[1751785539417,0.03,148.29,148.27,92.0139138]
[1751785539733,0.03,148.29,148.28,10.55791164]
[1751785540310,0.03,148.31,148.3,26.0]